Cogmind - Beta 13 X1 @@@ ROGUE MODE // 2023.10.06 @ 01:24:11 Player: Decinym Result: Destroyed by 8R-AWN with 8R-AWN's Boregun Performance ------------- Evolutions (1) 500 Regions Visited (5) 1000 Robots Destroyed (48) 240 Value Destroyed (974) 974 Prototype IDs (25) 500 Alien Tech Used (0) 0 Bonus (-818) -818 TOTAL SCORE: 2396 Bonus ------- Follower Combat Kills 54 Aligned with FarCom 300 Friendly Fire -1172 Cogmind --------- Core Integrity 0/400 Matter 108/300 Energy 44/265 System Corruption 0% Temperature Danger (469) Movement Treading (480) Ox4 Location -9/Exiles Parts ------- > --- POWER (1) -------- Improved Ion Engine > --- PROPULSION (3) --- Light Treads Light Treads > --- UTILITY (3) ------ Improved Heat Sink Huge Storage Unit Reflective Plating > --- WEAPON (2) ------- YI-UF0's Doublenader > --- INVENTORY (25) --- Light Ion Engine Titanium Leg Advanced Heat Sink Superbattery (1500) Small Matter Pod (50) Salvage Targeting Computer Salvage Targeting Computer Advanced Targeting Computer Light Armor Plating Reflective Plating Assault Rifle Light Assault Rifle Heavy Assault Rifle Rocket Launcher Maul Peak State ------------ > --- POWER ------------ Improved Ion Engine > --- PROPULSION ------- Light Treads Light Treads Titanium Leg > --- UTILITY ---------- Advanced Heat Sink Huge Storage Unit Reflective Plating > --- WEAPON ----------- Firepult > --- INVENTORY -------- Light Ion Engine Titanium Leg Improved Heat Sink Superbattery Small Matter Pod Salvage Targeting Computer Salvage Targeting Computer Advanced Targeting Computer Light Armor Plating Reflective Plating Assault Rifle Light Assault Rifle Heavy Assault Rifle Rocket Launcher YI-UF0's Doublenader Maul [Rating: 40] Favorites ----------- Power Improved Ion Engine Engine Improved Ion Engine Propulsion Light Treads Treads Light Treads Leg Aluminum Leg Utility Huge Storage Unit Device Improved Heat Sink Storage Huge Storage Unit Protection Medium Armor Plating Weapon Beamcaster Energy Gun Beamcaster Energy Cannon Advanced Beam Cannon Ballistic Gun Heavy Assault Rifle Launcher Rocket Launcher Special Weapon Plasma Cutter Build | -11 -10 -10 -9 -9 -9 ------- Run | Jun Mat Min Mat Min Exi Slots Evolved 2 | . . . 2 . . Power . | . . . . . . Propulsion 1 | . . . 1 . . Utility 1 | . . . 1 . . Weapon . | . . . . . . Parts Attached 58 | . 7 4 20 15 12 Power 5 | . 1 . 1 3 . Engine 5 | . 1 . 1 3 . Core . | . . . . . . Reactor . | . . . . . . Propulsion 15 | . 2 . 5 5 3 Treads 14 | . 2 . 5 5 2 Leg 1 | . . . . . 1 Wheel . | . . . . . . Hover . | . . . . . . Flight . | . . . . . . Utility 14 | . 2 1 6 3 2 Device 8 | . 2 1 2 2 1 Storage 2 | . . . 2 . . Processor . | . . . . . . Hackware . | . . . . . . Protection 4 | . . . 2 1 1 Artifact . | . . . . . . Weapon 24 | . 2 3 8 4 7 Energy Gun 10 | . 2 2 5 1 . Energy Cannon 3 | . . . 1 1 1 Ballistic Gun 4 | . . . . . 4 Ballistic Cannon . | . . . . . . Launcher 6 | . . 1 2 1 2 Special Weapon 1 | . . . . 1 . Impact Weapon . | . . . . . . Slashing Weapon . | . . . . . . Piercing Weapon . | . . . . . . Special Melee Weapon . | . . . . . . Unidentified Prototypes 2 | . . . 1 . 1 Parts Lost 15 | . . . . 9 6 Power 2 | . . . . 2 . Propulsion 8 | . . . . 4 4 Utility 2 | . . . . 1 1 Weapon 3 | . . . . 2 1 Highest Loss Streak 9 | . . . . 9 5 To Critical Strikes 1 | . . . . . 1 Average Slot Usage (%) 95 | . 99 100 98 97 85 Engine 11 | . 14 14 11 10 11 Treads 30 | . 12 28 33 32 32 Leg 1 | . 15 . . . . Device 13 | . 13 14 11 16 11 Storage 11 | . 14 14 11 11 11 Protection 6 | . . . 9 4 11 Energy Gun 14 | . 24 28 18 12 2 Energy Cannon 3 | . . . 3 7 2 Ballistic Gun 1 | . 3 . . . 3 Naked Turns . | . . . . . . Heaviest Build 114 | 11 16 16 103 104 114 Greatest Support 63 | 20 40 40 63 63 60 Greatest Overweight (x) 2 | . . . 1 1 2 Average Overweight (x) . | . . . . 1 1 Largest Inventory Capacity 25 | 8 8 8 25 25 25 Average Capacity 19 | 8 8 8 16 25 25 Most Carried 25 | 5 7 8 25 25 25 Average Carried 17 | 4 5 6 15 21 23 Final Capacity 25 | 8 8 8 25 25 25 Final Carried 25 | 4 5 8 25 25 15 Class Distribution -------------------- 55% | Scavenger-Mutant 44% | Mutant Dominant Class ---------------- Mutant | -10/Materials Mutant | -10/Mines Scavenger-Mutant | -9/Materials Scavenger-Mutant | -9/Mines Mutant | -9/Exiles Resources | -11 -10 -10 -9 -9 -9 ----------- Run | Jun Mat Min Mat Min Exi Matter Collected 794 | 200 79 46 244 205 20 Remotely . | . . . . . . Salvage Created 1463 | . 337 128 625 368 5 Parts 81 | . 15 16 43 7 . Haulers Intercepted 4 | . . . 4 . . Recyclers Shooed 3 | . . . 2 1 . Parts Field Recycled . | . . . . . . Retrieved Matter . | . . . . . . Parts Self-Destructed . | . . . . . . Prevented . | . . . . . . Kills | -11 -10 -10 -9 -9 -9 ------- Run | Jun Mat Min Mat Min Exi Combat Hostiles Destroyed 45 | . 10 5 14 13 3 Guns 20 | . 9 3 5 2 1 Cannons 4 | . . . 1 3 . AOE 19 | . . 2 7 8 2 Classes Destroyed 10 | . 2 2 4 2 . Worker 6 | . . 2 2 2 . Builder 1 | . . 1 . . . Hauler 4 | . . . 4 . . Recycler 2 | . . . 1 1 . Operator 1 | . . . 1 . . Swarmer 14 | . 3 3 8 . . Grunt 13 | . 7 2 4 . . Sentry 4 | . . . 2 2 . Demolisher 2 | . . . . 2 . Assembled 12 | . . . . 9 3 Best Kill Streak 10 | . 5 3 6 10 3 Combat Bots Only 9 | . 5 3 4 9 3 Max Kills in Single Turn 5 | . 1 2 5 2 1 Gunslinging . | . . . . . . Exploded 4 | . . 2 4 2 1 Melee . | . . . . . . Uniques/NPCs Destroyed 1 | . . . . 1 . YI-UF0 (-9/Mines) Combat | -11 -10 -10 -9 -9 -9 -------- Run | Jun Mat Min Mat Min Exi Damage Taken 3251 | . 384 125 492 1268 982 Core 529 | . 97 26 49 223 134 Absorbed by Shields . | . . . . . . Ignored by Resistances 8 | . . . . . 8 Core Remaining (%) 75 | 100 . 50 . . . Volleys Fired 156 | . 29 18 53 43 13 Largest 2 | . 2 2 2 2 2 Hottest 250 | . 115 115 150 150 250 Shots Fired 272 | . 58 35 102 61 16 Gun 200 | . 58 34 81 21 6 Cannon 37 | . . . 17 15 5 Launcher 20 | . . 1 4 10 5 Special 15 | . . . . 15 . Kinetic 15 | . 9 . . . 6 Thermal 222 | . 49 34 98 36 5 Explosive 20 | . . 1 4 10 5 Electromagnetic . | . . . . . . Impact 15 | . . . . 15 . Robot Hit Streak 25 | . 25 6 7 12 6 Robot Miss Streak 6 | . 2 3 6 4 5 Penetration Max . | . . . . . . Secondary Targets . | . . . . . . Shots Hit Robots 167 | . 47 20 51 42 7 Core Hits 82 | . 15 10 19 30 8 Critical Kills 2 | . . . 1 1 . Critical Parts Destroyed . | . . . . . . Critical Strikes 15 | . 2 2 4 7 . Burn 9 | . 2 2 3 2 . Meltdown 2 | . . . 1 1 . Sever 4 | . . . . 4 . Melee Attacks . | . . . . . . Impact . | . . . . . . Slashing . | . . . . . . Piercing . | . . . . . . Sneak Attacks . | . . . . . . Combat Hostiles . | . . . . . . Follow-up Attacks . | . . . . . . Damage Inflicted 4185 | . 607 425 1586 1283 284 Guns 2187 | . 607 286 992 290 12 Cannons 323 | . . . 84 224 15 Explosions 1558 | . . 134 510 657 257 Melee . | . . . . . . Ramming 38 | . . 5 . 33 . Kinetic 72 | . 60 . . . 12 Thermal 2452 | . 547 286 1076 514 29 Explosive 1544 | . . 134 510 657 243 Electromagnetic . | . . . . . . Impact 79 | . . . . 79 . Slashing . | . . . . . . Piercing . | . . . . . . Highest Corruption . | . . . . . . Average Corruption . | . . . . . . Corruption Purged . | . . . . . . Corruption Blocked . | . . . . . . Overload Shots . | . . . . . . Overflow Damage 53 | . . 4 49 . . Projectiles . | . . . . . . Explosions 53 | . . 4 49 . . Melee . | . . . . . . Knockbacks 1 | . . . . 1 . Impact 1 | . . . . 1 . Kinetic . | . . . . . . Secondary . | . . . . . . Self-Inflicted Damage 216 | . . . . 55 161 Shots 12 | . . . . 2 10 Rammed 6 | . . 2 . 4 . Targets Rammed 7 | . . 3 . 4 . Kicked . | . . . . . . Crushed 1 | . . 1 . . . Highest Temperature 998 | . 120 111 354 108 998 Average Temperature 121 | . 34 30 126 44 639 Received Heat Transfer 571 | . 189 27 219 136 . Effects 12 | . . . . . 12 Shutdowns 3 | . . . . . 3 Interference 4 | . . . . . 4 Matter Decay 2 | . . . . . 2 Short Circuit 1 | . . . . . 1 Damage (minor) 1 | . . . . . 1 Damage (major) 1 | . . . . . 1 Siege Activations . | . . . . . . Robots Corrupted . | . . . . . . Combat Hostiles . | . . . . . . Parts Fried . | . . . . . . Impact Corruptions . | . . . . . . Robots Melted 3 | . 1 . 1 1 . Combat Hostiles 2 | . 1 . 1 . . Parts Melted 13 | . 5 . 5 3 . Heat Transferred 6098 | . 1628 888 2109 1073 400 Parts Sabotaged . | . . . . . . Parts Stolen . | . . . . . . Parts Stripped . | . . . . . . Power Chain Reactions . | . . . . . . Missiles Intercepted . | . . . . . . Alert | -11 -10 -10 -9 -9 -9 ------- Run | Jun Mat Min Mat Min Exi Peak Influence 319 | . 246 263 319 167 . Initial 95 | . . 95 26 86 . Average 111 | . 126 147 187 44 . Maximum Alert Level 1 | . 1 1 1 . . Low Security (%) 76 | 100 76 61 48 100 . Level 1 23 | . 23 38 51 . . Level 2 . | . . . . . . Level 3 . | . . . . . . Level 4 . | . . . . . . Level 5 . | . . . . . . High Security . | . . . . . . Max Security . | . . . . . . Squads Dispatched 4 | . 2 . 2 . . Investigation 1 | . 1 . . . . Extermination . | . . . . . . Reinforcement 3 | . 1 . 2 . . Assault . | . . . . . . Garrison . | . . . . . . Intercept . | . . . . . . Searches Triggered . | . . . . . . Construction Impeded 1 | . . . 1 . . Haulers Reinforced . | . . . . . . Active Scanning Responses . | . . . . . . Cargo Convoy Interrupts . | . . . . . . Stealth | -11 -10 -10 -9 -9 -9 --------- Run | Jun Mat Min Mat Min Exi Distress Signals 1 | . . . . 1 . Communications Jammed . | . . . . . . Distress Signals . | . . . . . . Times Spotted 69 | . 12 5 23 22 7 Peak Tracking Total 12 | . 4 3 5 12 9 Tactical Retreats 1 | . . . . 1 . Traps | -11 -10 -10 -9 -9 -9 ------- Run | Jun Mat Min Mat Min Exi Traps Triggered 2 | . 1 1 . . . Indirectly . | . . . . . . Trap Hack Attempts . | . . . . . . Triggered . | . . . . . . Disarmed . | . . . . . . Reprogrammed . | . . . . . . Reused . | . . . . . . Traps Extracted . | . . . . . . Installed . | . . . . . . Triggered . | . . . . . . Machines | -11 -10 -10 -9 -9 -9 ---------- Run | Jun Mat Min Mat Min Exi Machines Disabled 7 | . . 2 . . 5 Max in Single Turn 2 | . . 1 . . 2 Machines Repaired . | . . . . . . Machines Sabotaged . | . . . . . . Overloaded Fab Kills . | . . . . . . Hacking | -11 -10 -10 -9 -9 -9 --------- Run | Jun Mat Min Mat Min Exi Machines Accessed 6 | . . 1 3 . 2 Terminals 3 | . . . 3 . . Fabricators . | . . . . . . Repair Stations . | . . . . . . Recycling Units . | . . . . . . Scanalyzers . | . . . . . . Garrison Access . | . . . . . . Total Hacks 11 | . . 1 8 . 2 Successful 6 | . . 1 3 . 2 Failed 5 | . . . 5 . . Catastrophic 1 | . . . 1 . . Database Lockouts . | . . . . . . Manual 7 | . . . 6 . 1 Terminals 8 | . . . 8 . . Fabricators . | . . . . . . Repair Stations . | . . . . . . Recycling Units . | . . . . . . Scanalyzers . | . . . . . . Garrison Access . | . . . . . . Terminal Hacks 6 | . . 1 3 . 2 Record 1 | . . . . . 1 Open Door 1 | . . 1 . . . Registered Components 1 | . . . 1 . . Zone Layout 2 | . . . 2 . . Derelict Proto ID Bank 1 | . . . . . 1 Fabricator Hacks . | . . . . . . Repair Station Hacks . | . . . . . . Recycling Unit Hacks . | . . . . . . Scanalyzer . | . . . . . . Garrison Access Hacks . | . . . . . . Unauthorized Hacks . | . . . . . . Terminals . | . . . . . . Fabricators . | . . . . . . Repair Stations . | . . . . . . Recycling Units . | . . . . . . Scanalyzers . | . . . . . . Garrison Access . | . . . . . . Data Cores Recovered . | . . . . . . Used . | . . . . . . Hacking Detections 2 | . . . 2 . . Full Trace Events . | . . . . . . Feedback Events . | . . . . . . Feedback Blocked . | . . . . . . Robot Schematics Acquired . | . . . . . . Robots Built . | . . . . . . Authchips . | . . . . . . Time . | . . . . . . Total Robot Build Rating . | . . . . . . Part Schematics Acquired . | . . . . . . Parts Built . | . . . . . . Authchips . | . . . . . . Time . | . . . . . . Total Part Build Rating . | . . . . . . Parts Repaired . | . . . . . . Time . | . . . . . . Parts Recycled . | . . . . . . Recycled Matter . | . . . . . . Retrieved Matter . | . . . . . . Retrieved Components . | . . . . . . Parts Scanalyzed . | . . . . . . Part Schematics Acquired . | . . . . . . Parts Damaged . | . . . . . . Bothacking | -11 -10 -10 -9 -9 -9 ------------ Run | Jun Mat Min Mat Min Exi Used RIF Installer . | . . . . . . Robots Hacked . | . . . . . . Non-combat . | . . . . . . Combat . | . . . . . . Robot Hacks Applied . | . . . . . . Relay Couplers Released . | . . . . . . Fabnet Peak Effective % . | . . . . . . Robots Rewired . | . . . . . . Allies Hacked . | . . . . . . Hacks Repelled . | . . . . . . Allies | -11 -10 -10 -9 -9 -9 -------- Run | Jun Mat Min Mat Min Exi Total Allies 4 | . . 1 . 3 . Largest Group 3 | . . 1 1 3 . Highest-Rated Group 40 | . . 31 31 40 . Highest-Rated Ally 31 | . . 31 31 16 . Total Orders . | . . . . . . Ally Attacks 20 | . . . 5 15 . Total Damage 235 | . . . 86 149 . Kills 5 | . . . 1 4 . Allies Corrupted . | . . . . . . Allies Melted . | . . . . . . Intel | -11 -10 -10 -9 -9 -9 ------- Run | Jun Mat Min Mat Min Exi Robot Analysis Total . | . . . . . . Derelict Logs Recovered 2 | . . 1 . 1 . Drone Launches . | . . . . . . Drone Recoveries . | . . . . . . Exploration | -11 -10 -10 -9 -9 -9 ------------- Run | Jun Mat Min Mat Min Exi Turns Passed 5394 | 2 393 783 1038 1694 1484 Spaces Moved 2293 | 1 211 446 416 636 583 Core . | . . . . . . Treads 2164 | . 83 446 416 636 583 Legs 129 | 1 128 . . . . Wheels . | . . . . . . Hover . | . . . . . . Flight . | . . . . . . Fastest Speed 120 | 120 120 160 160 240 240 Average Speed 206 | 120 135 160 194 240 240 Slowest Speed 320 | 120 160 160 240 240 320 Overloaded Moves . | . . . . . . Propulsion Burnouts . | . . . . . . Robots Hopped . | . . . . . . Cave-ins Triggered . | . . . . . . Exploration Rate (%) 57 | 2 53 95 37 89 69 Regions Visited 5 Branch Regions 3 Pre-discovered Areas 2 | . . 1 . . 1 Known Exits Taken . | . . . . . . Unknown Exits Taken 5 | 1 1 1 1 1 . Scrap Searched 1 | . . . . 1 . Spaces Dug 9 | . . . 9 . . Terrain Destroyed 127 | . . 8 30 48 41 Melee . | . . . . . . Projectile . | . . . . . . AOE 127 | . . 8 30 48 41 Terrain Rammed . | . . . . . . Walls Destroyed . | . . . . . . Machines Disabled . | . . . . . . Actions | -11 -10 -10 -9 -9 -9 --------- Run | Jun Mat Min Mat Min Exi Total 2667 | 2 262 478 548 723 654 Wait 62 | . 7 1 20 12 22 Move 2288 | . 210 445 415 635 583 Hop . | . . . . . . Pick Up 45 | . 3 4 22 8 8 Fast Attach 13 | . 3 1 6 3 . Attach 19 | . 2 . 1 7 9 Detach 4 | . . . 1 1 2 Swap 26 | . 2 3 13 5 3 Drop 47 | 2 6 3 17 5 14 Fire 156 | . 29 18 53 43 13 Melee . | . . . . . . Ram . | . . . . . . Kick . | . . . . . . Crush 7 | . . 3 . 4 . Escape Stasis . | . . . . . . Rewire . | . . . . . . Trap . | . . . . . . Miscellaneous . | . . . . . . Route ------- -11/Junkyard -10/Materials (discovered 3 exits: *Mat / *Min x2) -10/Mines (discovered 2 exits: *Mat x2) -9/Materials -9/Mines (discovered 2 exits: [*Mat] / *Exi) -9/Exiles (discovered 1 exit: [*Min]) History --------- Turn | Location | Event 3 | -11/Junkyard | Discovered new exit (range 0) 3 | -11/Junkyard | Entered Materials 186 | -10/Materials | Discovered new exit (range 16) 254 | -10/Materials | Discovered new exit (range 3) 309 | -10/Materials | Build established: Mutant 361 | -10/Materials | Discovered new exit (range 6) 396 | -10/Materials | Entered Mines 483 | -10/Mines | Discovered new exit (range 5) 565 | -10/Mines | Met a Derelict who couldn't figure out how to use a Trap Extractor 937 | -10/Mines | Learned location of Storage (-7) 1040 | -10/Mines | Received a Mining Laser from a helpful Derelict 1071 | -10/Mines | Discovered new exit (range 7) 1114 | -10/Mines | Received a Rocket Launcher from a helpful Derelict 1179 | -10/Mines | Entered Materials 1179 | -9/Materials | Accompanied by 1 ally 1179 | -9/Materials | Evolved 2 slots: Propulsion x1, Utility x1 1468 | -9/Materials | Discovered new exit (range 11) 1597 | -9/Materials | Build established: Scavenger-Mutant 2217 | -9/Materials | Entered Mines 2241 | -9/Mines | Assisted by bots powering up and referring to "LRC-V3" 2294 | -9/Mines | Discovered new exit (range 12) 2515 | -9/Mines | YI-UF0 nonchalantly dropped a Grenade Launcher on the ground 2677 | -9/Mines | Assembled infested the area 2745 | -9/Mines | Core integrity fell below 50% 2750 | -9/Mines | Lost 9 parts (2p4n1u2w) 2755 | -9/Mines | Destroyed 9 combat bots 2888 | -9/Mines | Destroyed YI-UF0 2908 | -9/Mines | Found Prototype Launcher 3523 | -9/Mines | Deemed a non-threat by the Exiles lab entrance 3523 | -9/Mines | Discovered new exit (range 5) 3911 | -9/Mines | Entered Exiles 3950 | -9/Exiles | Discovered new exit (range 15) 3971 | -9/Exiles | Met 8R-AWN 4010 | -9/Exiles | Met EX-HEX 4113 | -9/Exiles | Met EX-DEC 4125 | -9/Exiles | Learned location of Zion (-6) 4519 | -9/Exiles | Build established: Mutant 4724 | -9/Exiles | Met EX-BIN 4758 | -9/Exiles | Aligned with FarCom system 4760 | -9/Exiles | Given EX-Vault access code 4818 | -9/Exiles | Opened EX-Vault 4875 | -9/Exiles | Warned to stay clear of 0b10 Research branches 4924 | -9/Exiles | Found Firepult 4928 | -9/Exiles | Found Superbattery 5286 | -9/Exiles | Attacked by the Exiles 5323 | -9/Exiles | Core integrity fell below 20% 5370 | -9/Exiles | Lost 5 parts (3n1u1w) 5385 | -9/Exiles | Identified YI-UF0's Doublenader 5395 | -9/Exiles | Destroyed by 8R-AWN with 8R-AWN's Boregun Last Messages --------------- 05388_ HV Slug penetrates Wall. 05390_ Overheating: YI-UF0's Doublenader damaged (-7). 05390_ Penetrated by HV Slug. 05390_ Critical hit (Destroy). 05390_ HV Slug penetrates Wall. 05390_ Penetrated by HV Slug. 05390_ HV Slug penetrates Wall. 05391_ Lgt. Treads broken. 05391_ Overheating: Short circuit. 05392_ Wall collapses. 05392_ Power failure, Imp. Ion Engine shutdown. 05392_ Penetrated by HV Slug. 05392_ Critical hit (Destroy). 05392_ Titanium Leg destroyed. 05392_ HV Slug penetrates Earth. 05392_ Penetrated by HV Slug. 05392_ HV Slug penetrates Earth. 05394_ Overheating: System interference. 05394_ Imp. Heat Sink temporarily disabled. 05395_ Penetrated by HV Slug. Map ----- +----------------------------------------------------+ | ?????????????????????????????????????????????????? | | ?????????????????????????????????????????????????? | | ?????????????????????????????????????????????????? | | ?????????????????????????????????????????????????? | | ?????????????????????????????????????????????????? | | ?????????????????????????????????????????????????? | | ?????????????????????????????????????????????????? | | ?????????????????????????????????????????????????? | | ?????????????????????????????????????????????????? | | ??????????? ????????????????????????????????????? | | ??????????? ???????????????????????????????????? | | ?????????? ?????????????#######??????????????? | | ?????????? ######???????#!!! "#??????????????? | | ?????????? #""#??????# #??????????????? | | ??????????? ??????# ##?????????????? | | ???????????#" ##???## ;#???????????### | | ???????????"" #####" ;#??????????? " | | ?????????????# ## ;#???????????" " | | ??????????????# #????????????" | | ?????????????????# #????????????"" | | ?????????????????#### ###???????????"" | | ????????????????????### "## # ##?????? | | ??????????????########" #???????" | | ??????????????# !!""""" g ##???????# | | ??????????????# # ###???### | | ??????????????# ! !=@ #" "#####X# | | ??????????????#! [] !]# ##" | | ??????????????# !"""""";;#####"# | | ??????????????########;# ????#### | | ????????????????????# ###???????## | | ???????????????????# #????????????### | | ??????????????????# #???????????????## | | ??????????????????##?????????????????## | | ??????????????????????????????????????##" | | ???????????????????????????????????????#"" | | ??????????????????????????????????????##" | | ??????????????????????????????????????#"" | | ??????????????????????????????????????#""" | | ?????????????????????????????????????#""" | | ?????????????????????????????????????#""" | | ?????????????????????????????????????#"" | | ?????????????????????????????????????#""" | | ?????????????????????????????????????#"" | | ?????????????????????????????????????##"" | | ??????????????????????????????????????#"""" | | ??????????????????????????????????????## | | ???????????????????????????????????????#" | | ???????????????????????????????????????#"""" | | ???????????????????????????????????????#"" | | ????????????????????????????????????????" | +----------------------------------------------------+ Best States ------------- Heat Dissipation 61 Energy Generation 18 Energy Capacity 290 Matter Stores 300 Matter Capacity 300 Sight Range 16 Terrain Scan Density 10 Armor Coverage 225 Resistance: TH 10 Evasion (%) 55 Recoil Reduction 3 Item Schematics ----------------- None Robot Schematics ------------------ None Fabricated ------------ Nothing Alien Tech Used ----------------- None Achievements -------------- None Challenges ------------ None Game ------ Seed ExplosiveGammaClaw Manual? 0 Play Time 00:27:21 Cumulative 356.9 hours Start 2023.10.06 @ 01:01:14 End 2023.10.06 @ 01:24:11 Sessions 3 Manual Loads 0 Difficulty Rogue Special Mode None Game No. 376 Rogue 376 Adventurer 0 Explorer 0 Win Type - Total 29 Types 16/3/4/1/2/0/3/0/0 Lore% 86 Gallery% 87 Achievement% 82 Wizard Run 0 Options --------- ASCII 0 Keyboard 0 Movement Mouse Keybinds 0 Fullscreen 2 Font 24/Smallcaps Map View 76x50 Tactical HUD 1 Map Filters NONE Filters NONE Steam 1 RUN: 1c0b1408-158d-4019-88e1-c0a49dbff6c1